[Event "7. Arber-Senioren-Cup 2019"]
[Site "Bodenmais"]
[Date "2019.08.04"]
[Round "9.24"]
[White "Ketzscher, Roland"]
[Black "Glatz, Volker"]
[Result "1-0"]
[ECO "A40"]
[WhiteElo "1917"]
[BlackElo "1515"]
[Annotator "NA"]
[PlyCount "109"]
[EventDate "2019.07.27"]
[EventType "swiss"]
[EventCountry "GER"]
[SourceTitle "playchess.com"]
[Source "ChessBase"]
[SourceQuality "1"]
[TimeControl "60/7800+30:0"]

1. d4 {[%emt 0:00:00]} g6 {[%emt 0:00:00]} 2. c4 {[%emt 0:00:00]} Bg7 {[%emt 0:00:07]} 3. Nc3 {[%emt 0:00:00]} c6 {[%emt 0:01:00]} 4. e4 {[%emt 0:01:40]} d6 {[%emt 0:00:47]} 5. Nf3 {[%emt 0:02:14]} Bg4 {[%emt 0:00:31]} 6. Be2 {[%emt 0:06:50]} Bxf3 {[%emt 0:00:24]} 7. Bxf3 {[%emt 0:00:03]} Nf6 {[%emt 0:00:29]} 8. O-O {[%emt 0:01:51]} O-O {[%emt 0:00:14]} 9. Be3 {[%emt 0:00:45]} Qc7 {[%emt 0:00:38]} 10. Qe2 {[%emt 0:03:10]} a6 {[%emt 0:02:47]} 11. Rac1 {[%emt 0:01:14]} Nbd7 {[%emt 0:01:23]} 12. g3 {[%emt 0:01:34]} e5 {[%emt 0:02:43]} 13. dxe5 {[%emt 0:01:57]} Nxe5 {[%emt 0:00:28]} 14. Bg2 {[%emt 0:00:36]} Rae8 {[%emt 0:06:39]} 15. Rcd1 {[%emt 0:03:41]} Rd8 {[%emt 0:01:40]} 16. c5 {[%emt 0:08:09]} Rfe8 {[%emt 0:08:20]} 17. cxd6 {[%emt 0:06:16]} Rxd6 {[%emt 0:00:19]} 18. f4 {[%emt 0:01:48]} Neg4 {[%emt 0:00:23]} 19. Rxd6 {[%emt 0:02:18]} Nxe3 {[%emt 0:00:57]} 20. Qxe3 {[%emt 0:04:16]} Qxd6 {[%emt 0:00:26]} 21. Qf3 {[%emt 0:01:26]} Qc5+ {[%emt 0:01:06]} 22. Kh1 {[%emt 0:02:23]} Nd7 {[%emt 0:02:47]} 23. e5 {[%emt 0:08:03]} Nf8 {[%emt 0:02:31]} 24. Ne4 {[%emt 0:04:05]} Qb6 {[%emt 0:02:31]} 25. Nd6 {[%emt 0:01:37]} Rd8 {[%emt 0:01:26]} 26. b3 {[%emt 0:02:50]} Ne6 {[%emt 0:00:26]} 27. Bh3 {[%emt 0:07:46]} Nd4 {[%emt 0:00:29]} 28. Qd3 {[%emt 0:00:57]} c5 {[%emt 0:01:09]} 29. Qc4 {[%emt 0:01:57]} Rf8 {[%emt 0:02:26]} 30. Rc1 {[%emt 0:00:42]} Qc6+ {[%emt 0:00:27]} 31. Bg2 {[%emt 0:00:30]} b5 {[%emt 0:05:10]} 32. Bxc6 {[%emt 0:04:50]} bxc4 {[%emt 0:00:18]} 33. Bd5 {[%emt 0:00:54]} cxb3 {[%emt 0:02:19]} 34. axb3 {[%emt 0:00:08]} Ne6 {[%emt 0:00:51]} 35. Bxe6 {[%emt 0:02:29]} fxe6 {[%emt 0:00:24]} 36. Rxc5 {[%emt 0:00:35]} Rb8 {[%emt 0:00:42]} 37. Rc8+ {[%emt 0:02:33]} Rxc8 {[%emt 0:00:22]} 38. Nxc8 {[%emt 0:00:02]} Bf8 {[%emt 0:00:26]} 39. Nb6 {[%emt 0:00:47]} Bb4 {[%emt 0:00:47]} 40. Kg2 {[%emt 0:01:23]} Kf7 {[%emt 0:00:24]} 41. Kf3 {[%emt 0:00:31]} a5 {[%emt 0:00:49]} 42. Ke4 {[%emt 0:00:34]} Bc5 {[%emt 0:01:50]} 43. Nc4 {[%emt 0:00:29]} Bb4 {[%emt 0:00:24]} 44. g4 {[%emt 0:03:35]} h6 {[%emt 0:00:36]} 45. h4 {[%emt 0:01:58]} Ke7 {[%emt 0:01:35]} 46. h5 {[%emt 0:00:56]} Kf7 {[%emt 0:01:24]} 47. f5 {[%emt 0:12:26]} g5 {[%emt 0:03:09]} 48. fxe6+ {[%emt 0:01:25]} Kxe6 {[%emt 0:00:17]} 49. Ne3 {[%emt 0:00:14]} Bf8 {[%emt 0:00:56]} 50. Nf5 {[%emt 0:00:21]} Kf7 {[%emt 0:01:46]} 51. Kd5 {[%emt 0:00:44]} Ke8 {[%emt 0:01:58]} 52. Ke6 {[%emt 0:00:40]} Kd8 {[%emt 0:00:50]} 53. Kf7 {[%emt 0:00:14]} Bc5 {[%emt 0:01:28]} 54. Nxh6 {[%emt 0:00:25]} Bd4 {[%emt 0:00:19]} 55. e6 {[%emt 0:00:14]} 1-0

[Event "7. Arber-Senioren-Cup 2019"]
[Site "Bodenmais"]
[Date "2019.08.04"]
[Round "9.25"]
[White "Nusser, Hans-Karl"]
[Black "Supplieth, Peter"]
[Result "1-0"]
[ECO "D10"]
[WhiteElo "1601"]
[BlackElo "1880"]
[Annotator "NA"]
[PlyCount "145"]
[EventDate "2019.07.27"]
[EventType "swiss"]
[EventCountry "GER"]
[SourceTitle "playchess.com"]
[Source "ChessBase"]
[SourceQuality "1"]
[TimeControl "60/7800+30:0"]

1. d4 {[%emt 0:00:00]} d5 {[%emt 0:00:00]} 2. c4 {[%emt 0:00:00]} c6 {[%emt 0:00:00]} 3. cxd5 {[%emt 0:00:00]} cxd5 {[%emt 0:00:00]} 4. Nc3 {[%emt 0:00:07]} Nc6 {[%emt 0:00:00]} 5. Bf4 {[%emt 0:00:49]} e6 {[%emt 0:03:06]} 6. e3 {[%emt 0:00:50]} Nf6 {[%emt 0:01:05]} 7. Bd3 {[%emt 0:01:18]} Bd6 {[%emt 0:00:43]} 8. Bxd6 {[%emt 0:02:02]} Qxd6 {[%emt 0:00:03]} 9. Nf3 {[%emt 0:01:02]} O-O {[%emt 0:00:14]} 10. O-O {[%emt 0:00:07]} e5 {[%emt 0:03:08]} 11. dxe5 {[%emt 0:07:41]} Nxe5 {[%emt 0:00:08]} 12. Nxe5 {[%emt 0:03:11]} Qxe5 {[%emt 0:00:06]} 13. h3 {[%emt 0:07:11]} Rd8 {[%emt 0:03:49]} 14. Qc2 {[%emt 0:16:01]} Bd7 {[%emt 0:09:07]} 15. Ne2 {[%emt 0:03:50]} h5 {[%emt 0:10:15]} 16. Nd4 {[%emt 0:02:35]} Rac8 {[%emt 0:08:25]} 17. Qe2 {[%emt 0:02:35]} Re8 {[%emt 0:03:56]} 18. Rac1 {[%emt 0:06:05]} a6 {[%emt 0:01:26]} 19. Rfd1 {[%emt 0:16:04]} g5 {[%emt 0:05:26]} 20. Nf3 {[%emt 0:10:53]} Qe7 {[%emt 0:00:07]} 21. Nxg5 {[%emt 0:03:48]} d4 {[%emt 0:00:33]} 22. Bc4 {[%emt 0:11:51]} Rxc4 {[%emt 0:05:11]} 23. Rxc4 {[%emt 0:09:38]} Bb5 {[%emt 0:21:25]} 24. Rdxd4 {[%emt 0:03:49]} Qe5 {[%emt 0:00:51]} 25. Ne4 {[%emt 0:11:00]} Nh7 {[%emt 0:24:19]} 26. Qc2 {[%emt 0:04:05]} Bxc4 {[%emt 0:00:58]} 27. Qxc4 {[%emt 0:00:25]} Re6 {[%emt 0:12:55]} 28. h4 {[%emt 0:04:26]} Rc6 {[%emt 0:00:38]} 29. Qf1 {[%emt 0:01:53]} Qc7 {[%emt 0:03:07]} 30. Nc3 {[%emt 0:03:38]} Nf6 {[%emt 0:00:44]} 31. Qd1 {[%emt 0:00:23]} Ng4 {[%emt 0:04:29]} 32. Rd8+ {[%emt 0:01:51]} Kh7 {[%emt 0:05:07]} 33. g3 {[%emt 0:00:54]} Rf6 {[%emt 0:04:40]} 34. Qd3+ {[%emt 0:01:36]} Kg7 {[%emt 0:02:09]} 35. f4 {[%emt 0:01:09]} Nxe3 {[%emt 0:02:53]} 36. Rd4 {[%emt 0:01:43]} Nf5 {[%emt 0:02:17]} 37. Rd5 {[%emt 0:02:18]} Qb6+ {[%emt 0:00:47]} 38. Kh2 {[%emt 0:01:14]} Qxb2+ {[%emt 0:01:17]} 39. Qd2 {[%emt 0:00:21]} Qxd2+ {[%emt 0:02:24]} 40. Rxd2 {[%emt 0:00:04]} Rd6 {[%emt 0:00:27]} 41. Rb2 {[%emt 0:00:49]} Rd3 {[%emt 0:00:38]} 42. Ne2 {[%emt 0:00:25]} b5 {[%emt 0:00:16]} 43. Kg2 {[%emt 0:00:26]} Ne3+ {[%emt 0:00:24]} 44. Kg1 {[%emt 0:00:42]} Nc4 {[%emt 0:00:40]} 45. Rc2 {[%emt 0:00:22]} Kf6 {[%emt 0:00:16]} 46. Kf2 {[%emt 0:00:28]} Kf5 {[%emt 0:00:28]} 47. Rc3 {[%emt 0:00:25]} Ke4 {[%emt 0:01:04]} 48. Rxd3 {[%emt 0:00:56]} Kxd3 {[%emt 0:00:08]} 49. g4 {[%emt 0:00:40]} hxg4 {[%emt 0:01:31]} 50. h5 {[%emt 0:00:16]} Nd6 {[%emt 0:00:28]} 51. h6 {[%emt 0:00:25]} f5 {[%emt 0:00:20]} 52. h7 {[%emt 0:00:22]} Nf7 {[%emt 0:00:05]} 53. Ng3 {[%emt 0:00:09]} b4 {[%emt 0:00:56]} 54. Nxf5 {[%emt 0:00:21]} a5 {[%emt 0:00:35]} 55. Nd6 {[%emt 0:00:37]} Nh8 {[%emt 0:00:08]} 56. f5 {[%emt 0:00:20]} a4 {[%emt 0:01:11]} 57. f6 {[%emt 0:00:10]} b3 {[%emt 0:00:21]} 58. f7 {[%emt 0:00:39]} bxa2 {[%emt 0:00:31]} 59. f8=Q {[%emt 0:00:17]} a1=Q {[%emt 0:00:18]} 60. Qf5+ {[%emt 0:00:35]} Kd2 {[%emt 0:00:22]} 61. Nc4+ {[%emt 2:10:50]} Kc1 {[%emt 2:10:28]} 62. Qf4+ {[%emt 0:00:27]} Kb1 {[%emt 0:00:21]} 63. Qe4+ {[%emt 0:00:21]} Kc1 {[%emt 0:01:09]} 64. Qe3+ {[%emt 0:00:28]} Kc2 {[%emt 0:00:13]} 65. Qd2+ {[%emt 0:01:05]} Kb3 {[%emt 0:00:11]} 66. Na5+ {[%emt 0:00:41]} Ka3 {[%emt 0:00:20]} 67. Qd3+ {[%emt 0:00:48]} Kb4 {[%emt 0:00:25]} 68. Nc6+ {[%emt 0:00:32]} Kc5 {[%emt 0:00:14]} 69. Qc2+ {[%emt 0:00:48]} Kd6 {[%emt 0:00:14]} 70. Qc4 {[%emt 0:00:33]} Qb2+ {[%emt 0:00:18]} 71. Ke3 {[%emt 0:00:19]} Qb3+ {[%emt 0:00:11]} 72. Kd4 {[%emt 0:00:19]} Qxc4+ {[%emt 0:00:53]} 73. Kxc4 {[%emt 0:00:02] Ke5 Kd4+} 1-0

[Event "7. Arber-Senioren-Cup 2019"]
[Site "Bodenmais"]
[Date "2019.08.04"]
[Round "9.26"]
[White "Berger, Siegfried"]
[Black "Schmid, Johann"]
[Result "1-0"]
[ECO "A40"]
[WhiteElo "1548"]
[BlackElo "1842"]
[Annotator "NA"]
[PlyCount "47"]
[EventDate "2019.07.27"]
[EventType "swiss"]
[EventCountry "GER"]
[SourceTitle "playchess.com"]
[Source "ChessBase"]
[SourceQuality "1"]
[TimeControl "60/7800+30:0"]

1. d4 {[%emt 0:00:00]} e6 {[%emt 0:00:00]} 2. Nf3 {[%emt 0:00:00]} f5 {[%emt 0:00:00]} 3. Bf4 {[%emt 0:01:21]} Nf6 {[%emt 0:00:19]} 4. h3 {[%emt 0:01:09]} d5 {[%emt 0:01:40]} 5. e3 {[%emt 0:00:40]} Bd6 {[%emt 0:04:08]} 6. Bxd6 {[%emt 0:02:00]} cxd6 {[%emt 0:00:24]} 7. Bb5+ {[%emt 0:04:36]} Bd7 {[%emt 0:00:34]} 8. Bxd7+ {[%emt 0:02:08]} Qxd7 {[%emt 0:00:08]} 9. Nc3 {[%emt 0:01:23]} O-O {[%emt 0:01:25]} 10. Qe2 {[%emt 0:04:29]} a6 {[%emt 0:01:08]} 11. O-O {[%emt 0:02:18]} Nc6 {[%emt 0:01:19]} 12. a3 {[%emt 0:03:59]} Rac8 {[%emt 0:02:37]} 13. Rac1 {[%emt 0:05:06]} Na5 {[%emt 0:03:11]} 14. Nb1 {[%emt 0:07:21]} Ne4 {[%emt 0:07:30]} 15. Nfd2 {[%emt 0:03:09]} Qc7 {[%emt 0:03:30]} 16. Nxe4 {[%emt 0:02:06]} fxe4 {[%emt 0:00:54]} 17. Nc3 {[%emt 0:05:05]} Nc4 {[%emt 0:01:30]} 18. Rb1 {[%emt 0:01:00]} Nxa3 {[%emt 0:07:36]} 19. bxa3 {[%emt 0:05:01]} Qxc3 {[%emt 0:00:09]} 20. Rxb7 {[%emt 0:02:15]} Qxa3 {[%emt 0:01:19]} 21. Qg4 {[%emt 0:02:55]} Rf7 {[%emt 0:03:19]} 22. Qxe6 {[%emt 0:04:01]} Rcf8 {[%emt 0:00:07]} 23. Rfb1 {[%emt 0:01:15]} Qa5 {[%emt 0:01:26]} 24. Rxf7 {[%emt 0:02:19]} 1-0

[Event "7. Arber-Senioren-Cup 2019"]
[Site "Bodenmais"]
[Date "2019.08.04"]
[Round "9.27"]
[White "Gaedt, Mario"]
[Black "Schuster, Herbert"]
[Result "0-1"]
[ECO "D43"]
[WhiteElo "1502"]
[BlackElo "1774"]
[Annotator "NA"]
[PlyCount "54"]
[EventDate "2019.07.27"]
[EventType "swiss"]
[EventCountry "GER"]
[SourceTitle "playchess.com"]
[Source "ChessBase"]
[SourceQuality "1"]
[TimeControl "60/7800+30:0"]

1. d4 {[%emt 0:00:00]} d5 {[%emt 0:00:00]} 2. Nf3 {[%emt 0:00:00]} Nf6 {[%emt 0:00:09]} 3. c4 {[%emt 0:00:02]} e6 {[%emt 0:00:32]} 4. Nc3 {[%emt 0:00:12]} c6 {[%emt 0:00:32]} 5. Bg5 {[%emt 0:00:37]} Be7 {[%emt 0:00:25]} 6. e3 {[%emt 0:00:33]} h6 {[%emt 0:00:35]} 7. Bxf6 {[%emt 0:00:11]} Bxf6 {[%emt 0:00:14]} 8. cxd5 {[%emt 0:00:33]} exd5 {[%emt 0:00:45]} 9. Bd3 {[%emt 0:00:41]} Qb6 {[%emt 0:01:36]} 10. Rb1 {[%emt 0:03:09]} Bg4 {[%emt 0:01:10]} 11. O-O {[%emt 0:00:35]} Nd7 {[%emt 0:01:03]} 12. Re1 {[%emt 0:03:37]} O-O {[%emt 0:03:07]} 13. Bc2 {[%emt 0:03:12]} Rfe8 {[%emt 0:00:17]} 14. h3 {[%emt 0:02:44]} Bh5 {[%emt 0:01:03]} 15. b4 {[%emt 0:04:51]} Qc7 {[%emt 0:00:58]} 16. Ne2 {[%emt 0:04:27]} Re7 {[%emt 0:03:56]} 17. Nf4 {[%emt 0:00:50]} Bxf3 {[%emt 0:01:04]} 18. Qxf3 {[%emt 0:00:49]} Rae8 {[%emt 0:02:02]} 19. Qd1 {[%emt 0:07:00]} Bg5 {[%emt 0:02:30]} 20. Qd3 {[%emt 0:00:45]} Nf8 {[%emt 0:00:11]} 21. Nh5 {[%emt 0:04:30]} g6 {[%emt 0:03:31]} 22. Ng3 {[%emt 0:00:27]} Bxe3 {[%emt 0:01:47]} 23. Qf1 {[%emt 0:11:38]} Bxd4 {[%emt 0:00:38]} 24. Re2 {[%emt 0:02:38]} Qxg3 {[%emt 0:00:33]} 25. Rd2 {[%emt 0:04:24]} Qf4 {[%emt 0:01:43]} 26. Rdd1 {[%emt 0:11:04]} Re2 {[%emt 0:00:27]} 27. Bd3 {[%emt 0:02:47]} Rxf2 {[%emt 0:00:31]} 0-1